Cogmind - Beta 17.1 @@@ ROGUE MODE // 2026.09.15 @ 10:52:15 Player: jimmyl Result: Destroyed by Triborg with Siege Cannon Performance ------------- Evolutions (0) 0 Regions Visited (3) 600 Robots Destroyed (3) 15 Value Destroyed (60) 60 Prototype IDs (2) 40 Alien Tech Used (0) 0 Bonus (5973) 5973 TOTAL SCORE: 6688 Bonus ------- Follower Combat Kills 373 Prayed to X0-1V1 5000 Major X0-1V1 Interference 600 Cogmind --------- Core Integrity 0/100 Matter 300/300 Energy 100/100 System Corruption 0% Temperature Cool (0) Movement Treading (160) Location -9/Scraptown Parts ------- > --- POWER (1) -------- (None) > --- PROPULSION (2) --- Improved Treads Improved Treads (fused) > --- UTILITY (2) ------ Small Storage Unit Self-contained Transmogrifier > --- WEAPON (2) ------- Assault Rifle (fused) > --- INVENTORY (8) ---- Light Ion Engine Light Treads Compact Wheel Compact Wheel Improved Heat Sink X0-1V1's Piety Tracker Light Assault Rifle Peak State ------------ > --- POWER ------------ Improved Ion Engine > --- PROPULSION ------- Improved Treads Improved Aluminum Leg > --- UTILITY ---------- Small Storage Unit Self-contained Transmogrifier > --- WEAPON ----------- Improved EM Shotgun Assault Rifle > --- INVENTORY -------- Light Ion Engine Light Treads Light Treads Compact Wheel Compact Wheel Improved Heat Sink X0-1V1's Piety Tracker Light Assault Rifle [Rating: 22] Favorites ----------- Power Improved Ion Engine Engine Improved Ion Engine Propulsion Aluminum Leg Treads Improved Treads Leg Aluminum Leg Utility Small Storage Unit Device Self-contained Transmogrifier Storage Small Storage Unit Weapon Assault Rifle Energy Gun EM Pulse Gun Ballistic Gun Assault Rifle Build | -11 -10 -10 -9 ------- Run | Yrd Mat Sub Scr Slots Evolved . | . . . . Power . | . . . . Propulsion . | . . . . Utility . | . . . . Weapon . | . . . . Parts Attached 3 | . 1 . 2 Power . | . . . . Engine . | . . . . Core . | . . . . Reactor . | . . . . Propulsion 2 | . . . 2 Treads 2 | . . . 2 Leg . | . . . . Wheel . | . . . . Hover . | . . . . Flight . | . . . . Utility . | . . . . Device . | . . . . Storage . | . . . . Processor . | . . . . Hackware . | . . . . Protection . | . . . . Artifact . | . . . . Weapon 1 | . 1 . . Energy Gun . | . . . . Energy Cannon . | . . . . Ballistic Gun 1 | . 1 . . Ballistic Cannon . | . . . . Launcher . | . . . . Special Weapon . | . . . . Impact Weapon . | . . . . Slashing Weapon . | . . . . Piercing Weapon . | . . . . Special Melee Weapon . | . . . . Unidentified Prototypes . | . . . . Parts Lost 2 | . . . 2 Power 1 | . . . 1 Propulsion . | . . . . Utility . | . . . . Weapon 1 | . . . 1 Highest Loss Streak 2 | . . . 2 To Critical Strikes . | . . . . Average Backups 7 | 6 6 7 7 Power 1 | 1 1 1 1 Propulsion 3 | 4 4 4 3 Utility 1 | . . 1 2 Weapon 1 | 1 1 1 1 Tool/Special . | . . . . Unused Backups 16 | . 6 2 8 Power 3 | . 1 1 1 Propulsion 6 | . 2 1 3 Utility 3 | . 1 . 2 Weapon 4 | . 2 . 2 Tool/Special . | . . . . Average Slot Usage (%) 97 | . 85 100 100 Engine 14 | . 14 14 14 Treads 7 | . . . 21 Leg 20 | . 28 28 6 Device 12 | . . 14 14 Storage 14 | . 14 14 14 Energy Gun 14 | . 18 14 14 Ballistic Gun 13 | . 10 14 14 Peak Build Rating 22 | 6 6 19 22 Average Rating 17 | 6 6 17 21 On Entrance 11 | 6 6 15 19 Avg Prop Armor Cover (%) . | . . . . Naked Turns . | . . . . Heaviest Build 17 | 11 12 16 17 Greatest Support 46 | 20 20 23 46 Greatest Overweight (x) . | . . . . Average Overweight (x) . | . . . . Largest Inventory Capacity 8 | 8 8 8 8 Average Capacity 8 | 8 8 8 8 Most Carried 8 | 6 7 8 8 Average Carried 7 | 6 6 7 7 Final Capacity 8 | 8 8 8 8 Final Carried 8 | 6 7 8 7 Transmogrified Parts 4 | . . 2 2 Integrity Recovered 74 | . . 7 67 Class Distribution -------------------- 100% | Mutant Dominant Class ---------------- Mutant | -10/Materials Mutant | -10/Subcaves Mutant | -9/Scraptown Resources | -11 -10 -10 -9 ----------- Run | Yrd Mat Sub Scr Matter Collected 247 | 183 . 35 29 Remotely . | . . . . Salvage Created 87 | . 32 . 55 Parts 4 | . 1 . 3 Haulers Intercepted . | . . . . Recyclers Shooed . | . . . . Parts Field Recycled . | . . . . Retrieved Matter . | . . . . Parts Self-Destructed 13 | . . 13 . Prevented . | . . . . Parts Restored . | . . . . Kills | -11 -10 -10 -9 ------- Run | Yrd Mat Sub Scr Combat Hostiles Destroyed 3 | . 2 . 1 Guns 3 | . 2 . 1 Classes Destroyed 2 | . 1 . 1 Swarmer 2 | . 2 . . Explorer 1 | . . . 1 Best Kill Streak 2 | . 2 . 1 Combat Bots Only 2 | . 2 . 1 Max Kills in Single Turn 1 | . 1 . 1 Gunslinging . | . . . . Exploded . | . . . . Melee . | . . . . Uniques/NPCs Destroyed . | . . . . Combat | -11 -10 -10 -9 -------- Run | Yrd Mat Sub Scr Hostile Shots Fired 18 | . 7 2 9 Missed 2 | . 1 . 1 Hits 16 | . 6 2 8 Melee 6 | . . . 6 Projectile 10 | . 6 2 2 Damage Taken 435 | . 49 39 347 Core 146 | . . . 146 Absorbed by Shields . | . . . . Core Remaining (%) 100 | 100 . . . Volleys Fired 9 | . 3 3 3 Largest 2 | . 2 2 2 Hottest 65 | . 60 60 65 Shots Fired 18 | . 6 6 6 Gun 18 | . 6 6 6 Cannon . | . . . . Launcher . | . . . . Special . | . . . . Kinetic 9 | . 3 3 3 Thermal . | . . . . Explosive . | . . . . Electromagnetic 9 | . 3 3 3 Robot Hit Streak 8 | . 2 4 8 Robot Miss Streak 2 | . 2 2 1 Penetration Max . | . . . . Secondary Targets . | . . . . Shots Hit Robots 12 | . 3 4 5 Core Hits 5 | . 2 . 3 Critical Kills . | . . . . Critical Parts Destroyed . | . . . . Critical Strikes . | . . . . Melee Attacks . | . . . . Impact . | . . . . Slashing . | . . . . Piercing . | . . . . Sneak Attacks . | . . . . Combat Hostiles . | . . . . Follow-up Attacks . | . . . . Damage Inflicted 182 | . 47 47 88 Guns 149 | . 39 47 63 Cannons . | . . . . Explosions 25 | . . . 25 Melee . | . . . . Ramming 8 | . 8 . . Kinetic 80 | . 29 25 26 Thermal 25 | . . . 25 Explosive . | . . . . Electromagnetic 69 | . 10 22 37 Impact . | . . . . Slashing . | . . . . Piercing . | . . . . Highest Corruption . | . . . . Average Corruption . | . . . . Corruption Purged . | . . . . Corruption Blocked . | . . . . Overload Shots . | . . . . Overflow Damage . | . . . . Projectiles . | . . . . Explosions . | . . . . Melee . | . . . . Knockbacks . | . . . . Impact . | . . . . Kinetic . | . . . . Secondary . | . . . . Self-Inflicted Damage 36 | . . . 36 Shots 1 | . . . 1 Rammed . | . . . . Targets Rammed 3 | . 3 . . Kicked 3 | . 3 . . Crushed . | . . . . Highest Temperature 18 | . . . 18 Average Temperature 9 | . . . 9 Received Heat Transfer . | . . . . Siege Activations . | . . . . Martial Activations . | . . . . Shielding Activations . | . . . . Robots Disrupted . | . . . . Combat Hostiles . | . . . . Robots Corrupted . | . . . . Combat Hostiles . | . . . . Parts Fried . | . . . . Impact Corruptions . | . . . . Robots Melted . | . . . . Combat Hostiles . | . . . . Parts Melted . | . . . . Heat Transferred 50 | . . . 50 Parts Sabotaged . | . . . . Parts Stolen . | . . . . Parts Stripped . | . . . . Power Chain Reactions 1 | . . . 1 Alert | -11 -10 -10 -9 ------- Run | Yrd Mat Sub Scr Maximum Alert Level . | . . . . Low Security (%) 100 | 100 100 . . Level 1 . | . . . . Level 2 . | . . . . Level 3 . | . . . . Level 4 . | . . . . Level 5 . | . . . . High Security . | . . . . Max Security . | . . . . Peak Influence 50 | . 50 . . Initial . | . . . . Average 13 | . 15 . . Influence Increases 50 | . 50 . . Destroy 0b10 Robot/C 40 | . 40 . . Destroy Leader 10 | . 10 . . Influence Decreases 50 | . . 50 . Entered New Map 25 | . . 25 . Time Decay 25 | . . 25 . Squads Dispatched . | . . . . Investigation . | . . . . Extermination . | . . . . Reinforcement . | . . . . Assault . | . . . . Garrison . | . . . . Intercept . | . . . . Searches Triggered . | . . . . Construction Impeded . | . . . . Haulers Reinforced . | . . . . Active Scanning Responses . | . . . . Cargo Convoy Interrupts . | . . . . Stealth | -11 -10 -10 -9 --------- Run | Yrd Mat Sub Scr Distress Signals . | . . . . Communications Jammed . | . . . . Distress Signals . | . . . . Times Spotted 17 | . 2 4 11 Peak Tracking Total 10 | . 2 3 10 Tactical Retreats . | . . . . Traps | -11 -10 -10 -9 ------- Run | Yrd Mat Sub Scr Traps Triggered . | . . . . Indirectly . | . . . . Trap Hack Attempts . | . . . . Triggered . | . . . . Disarmed . | . . . . Reprogrammed . | . . . . Reused . | . . . . Traps Extracted . | . . . . Installed . | . . . . Triggered . | . . . . Machines | -11 -10 -10 -9 ---------- Run | Yrd Mat Sub Scr Machines Disabled 2 | . . . 2 Max in Single Turn 1 | . . . 1 Machines Repaired . | . . . . Machines Dismantled . | . . . . Machines Sabotaged . | . . . . Overloaded Fab Kills . | . . . . Hacking | -11 -10 -10 -9 --------- Run | Yrd Mat Sub Scr Machines Accessed . | . . . . Terminals . | . . . . Fabricators . | . . . . Repair Stations . | . . . . Recycling Units . | . . . . Scanalyzers . | . . . . Garrison Access . | . . . . Total Hacks . | . . . . Successful . | . . . . Failed . | . . . . Catastrophic . | . . . . Database Lockouts . | . . . . Manual 3 | . 3 . . Terminals . | . . . . Fabricators . | . . . . Repair Stations . | . . . . Recycling Units . | . . . . Scanalyzers . | . . . . Garrison Access . | . . . . Terminal Hacks . | . . . . Fabricator Hacks . | . . . . Repair Station Hacks . | . . . . Recycling Unit Hacks . | . . . . Scanalyzer . | . . . . Garrison Access Hacks . | . . . . Unauthorized Hacks . | . . . . Terminals . | . . . . Fabricators . | . . . . Repair Stations . | . . . . Recycling Units . | . . . . Scanalyzers . | . . . . Garrison Access . | . . . . Data Cores Recovered . | . . . . Used . | . . . . Hacking Detections . | . . . . Full Trace Events . | . . . . Feedback Events . | . . . . Feedback Blocked . | . . . . Robot Schematics Acquired . | . . . . Robots Built . | . . . . Authchips . | . . . . Time . | . . . . Total Robot Build Rating . | . . . . Part Schematics Acquired . | . . . . Parts Built . | . . . . Authchips . | . . . . Time . | . . . . Total Part Build Rating . | . . . . Part Studies Acquired . | . . . . Parts Repaired . | . . . . Time . | . . . . Parts Recycled . | . . . . Recycled Matter . | . . . . Retrieved Matter . | . . . . Retrieved Components . | . . . . Parts Scanalyzed . | . . . . Part Schematics Acquired . | . . . . Parts Damaged . | . . . . Bothacking | -11 -10 -10 -9 ------------ Run | Yrd Mat Sub Scr Used RIF Installer . | . . . . Robots Hacked . | . . . . Non-combat . | . . . . Combat . | . . . . Robot Hacks Applied . | . . . . Relay Couplers Released . | . . . . Fabnet Peak Effective % . | . . . . Robots Rewired . | . . . . Allies Hacked . | . . . . Hacks Repelled . | . . . . Allies | -11 -10 -10 -9 -------- Run | Yrd Mat Sub Scr Total Allies 2 | . . 1 1 Largest Group 1 | . . 1 1 Highest-Rated Group 464 | . . 19 464 Highest-Rated Ally 464 | . . 19 464 Total Orders . | . . . . Ally Attacks 25 | . . 1 24 Total Damage 1353 | . . 21 1332 Kills 13 | . . 1 12 Allies Corrupted . | . . . . Allies Melted . | . . . . X0-1V1 Amusement Gains 13 | . 10 2 1 Average Entertainment 8 | . . 9 5 Good Acts 1 | . . 1 . Bad Acts 3 | . . 3 . Intel | -11 -10 -10 -9 ------- Run | Yrd Mat Sub Scr Active Infowar (turns) . | . . . . Robot Analysis Total . | . . . . Derelict Logs Recovered 2 | . . 2 . Drone Launches . | . . . . Drone Recoveries . | . . . . Exploration | -11 -10 -10 -9 ------------- Run | Yrd Mat Sub Scr Turns Passed 476 | 5 59 242 170 Spaces Moved 323 | 5 31 192 95 Core . | . . . . Treads 76 | . . . 76 Legs 247 | 5 31 192 19 Wheels . | . . . . Hover . | . . . . Flight . | . . . . Fastest Speed 120 | 120 120 120 120 Average Speed 129 | 120 120 120 152 Slowest Speed 160 | 120 120 120 160 Overloaded Moves . | . . . . Propulsion Burnouts . | . . . . Robots Hopped . | . . . . Potential Cave-ins . | . . . . Cave-ins Triggered . | . . . . Exploration Rate (%) 9 | 2 9 20 8 Regions Visited 3 Branch Regions 2 Pre-discovered Areas . | . . . . Known Exits Taken . | . . . . Unknown Exits Taken 3 | 1 1 1 . Scrap Searched 1 | . . . 1 Spaces Dug . | . . . . Terrain Destroyed . | . . . . Melee . | . . . . Projectile . | . . . . AOE . | . . . . Terrain Rammed . | . . . . Walls Destroyed . | . . . . Machines Disabled . | . . . . Actions | -11 -10 -10 -9 --------- Run | Yrd Mat Sub Scr Total 362 | 4 46 197 115 Wait 21 | . 6 2 13 Move 320 | 4 30 191 95 Hop . | . . . . Pick Up 3 | . 2 1 . Fast Attach 1 | . . . 1 Attach 2 | . 1 . 1 Detach . | . . . . Swap . | . . . . Drop 3 | . 1 . 2 Fire 9 | . 3 3 3 Melee . | . . . . Ram . | . . . . Kick 3 | . 3 . . Crush . | . . . . Escape Stasis . | . . . . Rewire . | . . . . Trap . | . . . . Miscellaneous . | . . . . Route ------- -11/Scrapyard -10/Materials -10/Subcaves (discovered 2 exits: Rec / [*Scr]) -9/Scraptown History --------- Turn | Location | Event 1 | -11/Scrapyard | Discovered new exit (range 3) 6 | -11/Scrapyard | Entered Materials 7 | -10/Materials | Met a group of wandering Federalists 52 | -10/Materials | Discovered new exit (range 7) 65 | -10/Materials | Made a sacrifice at D.C.S.S. Altar Unit 65 | -10/Materials | Forcibly received Sfc. Transmogifier from X0-1V1 65 | -10/Materials | Entered Subcaves 65 | -10/Subcaves | Accompanied by 4 allies 66 | -10/Subcaves | Continued accompanying wandering Federalists (4) 66 | -10/Subcaves | Approached by a straggling Scientist 91 | -10/Subcaves | X0-1V1 sent you into danger 119 | -10/Subcaves | X0-1V1 turns hostiles against one another 141 | -10/Subcaves | Learned 4 Materials zone layouts 142 | -10/Subcaves | Identified exit to Recycling 182 | -10/Subcaves | X0-1V1 caused items to flee you 291 | -10/Subcaves | Wandering Federalist uncovered a shortcut to Scraptown 305 | -10/Subcaves | Build established: Mutant 307 | -10/Subcaves | Entered Scraptown 358 | -9/Scraptown | X0-1V1 brought Wyrm Statue to life 358 | -9/Scraptown | Attacked by Scraptown defenders 364 | -9/Scraptown | Core integrity fell below 50% 477 | -9/Scraptown | Destroyed by Triborg with Siege Cannon Last Messages --------------- 00453_ PB-5VW(j) cannibalizes Ovr. Pulse Rifle to repair Ovr. Pulse Rifle. 00455_ D5-EUT(h) destroyed. 00458_ PB-5VW(j) system terminally corrupted. 00459_ HW-WYY(r) destroyed. 00462_ 6F-WA2(E) system terminally corrupted. 00463_ The unstable cave ceiling collapses. 00463_ 67 Matter crushed. 00463_ MW-6O6(x) destroyed. 00464_ ANNOUNCEMENT: Triborg tracking relay activated. Stay clear or you only have yourself to blame! 00467_ The unstable cave ceiling collapses. 00467_ A4-K2S(j) destroyed. 00475_ Penetrated by Siege Slug. 00475_ Imp. Ion Engine destroyed. 00475_ Imp. EM Shotgun destroyed. 00477_ Penetrated by Siege Slug. [Achievement: First Step to Greatness] 00477_ X0-1V1 cackles wildly! Map ----- +----------------------------------------------------+ | ?????????????????????????????????????????????????? | | ?????????????????????????????????????????????????? | | ?????????????????????????????????????????????????? | | ?????????????????????????????????????????????????? | | ?????????????????????????????????????????????????? | | ?????????????????????????????????????????????????? | | ?????????????????????????????????????????????????? | | ?????????????????????????????????????????????????? | | ?????????????????????????????????????????????????? | | ?????????????????????????????????????????????????? | | ?????????????????????????????????????????????????? | | ?????????????????????????????????????????????????? | | ?????????????????????????????????????????????????? | | ?????????????????????????????????????????????????? | | ?????????????????????????????????????????????????? | | ????????????????????????????????????#????????????? | | ?????????????????????????????????? ##???????????? | | ????????????????????????????????? !?????????? | | ???????????????????????????????? !%?????????? | | ????????????????????????????????[ [?????????? | | ????????????????????????#######=!= [%????????? | | ???????????????????????## # #%=% !????????? | | ??????????????????????## ![*[! ???????? | | ??????????????????????# !* ???????? | | ???????????"""######### % !! ???????? | | ?????????? @*% ### ####??????????? | | ?????????? %== ????????? | | ????????????""##"" """# DD* " "????????? | | ????????????????"" ?## %DD X "????????? | | ?????????????????" ????## !! #" ?????????? | | ?????????????????"??????# ######## ###?????????? | | ????????????????????????# #????????????????????? | | ????????????????????????# #????????????????????? | | ????????????????????????# #????????????????????? | | ????????????????????????# #????????????????????? | | ????????????????#####???# #????????????????????? | | ????????????????#"""#???# #????????????????????? | | ????????????????#" "#???# #????????????????????? | | ????????????????# #???# #????????????????????? | | ????????????????# ##### #????????????????????? | | ????????????????# ##???????????????????? | | ????????????????# #???????????????????? | | ????????????????# ##???###?????????????? | | ????????????????##### ### ##????"""?????????????? | | ????????????????????# #?###?????" ""????????????? | | ???????????????###### ######???"" "????????????? | | ???????????????#""""" """""#??#" ""#???????????? | | ???????????????#"""%" " "#??#"" ""#???????????? | | ???????????????#"= | "#??#"" ""#???? "#????? | | ???????????????#""""" """""#??#"" ""#??? "#????? | +----------------------------------------------------+ Best States ------------- Heat Dissipation 25 Energy Generation 12 Energy Capacity 265 Matter Stores 300 Matter Capacity 300 Sight Range 16 Terrain Scan Density 10 Evasion (%) 55 Recoil Reduction 2 Item Schematics ----------------- None Robot Schematics ------------------ None Fabricated ------------ Nothing Repaired ---------- Nothing Studied --------- None Alien Tech Used ----------------- None Achievements -------------- Chaos Is Inevitable Civilization 2243 First Step to Greatness Strength In Numbers Challenges ------------ None Game ------ Seed RiotGodDrillbomb Manual? 0 Play Time 00:08:41 Cumulative 0.4 hours Start 2026.09.15 @ 10:44:57 End 2026.09.15 @ 10:52:15 Sessions 2 Manual Loads 0 Difficulty Rogue Special Mode None Game No. 3 Rogue 3 Adventurer 0 Explorer 0 Win Type - Total 0 Types 0/0/0/0/0/0/0/0/0/0 Lore% 3 Gallery% 8 Achievement% 10 Wizard Run 0 Options --------- Layout 1 ASCII 0 Keyboard 0 Movement Mouse Keybinds 0 Fullscreen 1 Font 24/Smallcaps Map View 50x35 Zoom Use 0% Tactical HUD 1 Map Filters NONE Filters NONE Steam 0 RUN: 57ab4e06-2912-45d2-a154-9499841d97bd